Workbook

Sheet Presmetka
A6: Br. | B6: 0 | P6: 0 | Q6: ROPLASTO
B7: Tip na prozor | G7: =IF(B8<>"",VLOOKUP(B8,podatoci1,3,FALSE),"") -> Kasa | H7: =IF(B8<>"",VLOOKUP(B8,podatoci1,4,FALSE),"") -> Krilo | I7: =IF(B8<>"",VLOOKUP(B8,podatoci1,5,FALSE),"") -> 0 | J7: =IF(B8<>"",VLOOKUP(B8,podatoci1,6,FALSE),"") -> T Pre. | K7: =IF(B8<>"",VLOOKUP(B8,podatoci1,7,FALSE),"") -> `.Kasa | L7: =IF(B8<>"",VLOOKUP(B8,podatoci1,8,FALSE),"") -> `.Krilo | M7: =IF(B8<>"",VLOOKUP(B8,podatoci1,9,FALSE),"") -> 0 | N7: =IF(B8<>"",VLOOKUP(B8,podatoci1,10,FALSE),"") -> Staklo
A8: PVC | B8: Prozor so 1 krilo + fiksno | G8: =IF(B8<>"",VLOOKUP(B8,Presmetka,2,FALSE),"") -> 2006 | H8: =IF(B8<>"",VLOOKUP(B8,Presmetka,6,FALSE),"") -> -76 | I8: =IF(B8<>"",VLOOKUP(B8,Presmetka,10,FALSE),"") -> 0 | J8: =IF(B8<>"",VLOOKUP(B8,Presmetka,14,FALSE),"") -> 1350 | K8: =IF(B8<>"",VLOOKUP(B8,Presmetka,15,FALSE),"") -> 1850 | L8: =IF(B8<>"",VLOOKUP(B8,Presmetka,19,FALSE),"") -> -161 | M8: =IF(B8<>"",VLOOKUP(B8,Presmetka,23,FALSE),"") -> 0 | N8: =IF(B8<>"",VLOOKUP(B8,Presmetka,27,FALSE),"") -> -136 | O8: x | P8: =IF(B8<>"",VLOOKUP(B8,Presmetka,28,FALSE),"") -> 1232
B9: [irina | C9: Visina | E9: =IF(B8<>"",VLOOKUP(B8,podatoci1,2,FALSE),"") -> Krilo | G9: =IF(B8<>"",VLOOKUP(B8,Presmetka,3,FALSE),"") -> 2006 | H9: =IF(B8<>"",VLOOKUP(B8,Presmetka,7,FALSE),"") -> -76 | I9: =IF(B8<>"",VLOOKUP(B8,Presmetka,11,FALSE),"") -> 0 | K9: =IF(B8<>"",VLOOKUP(B8,Presmetka,16,FALSE),"") -> 1850 | L9: =IF(B8<>"",VLOOKUP(B8,Presmetka,20,FALSE),"") -> -161 | M9: =IF(B8<>"",VLOOKUP(B8,Presmetka,24,FALSE),"") -> 0
B10: 2000 | C10: 1450 | G10: =IF(B8<>"",VLOOKUP(B8,Presmetka,4,FALSE),"") -> 1456 | H10: =IF(B8<>"",VLOOKUP(B8,Presmetka,8,FALSE),"") -> 1374 | I10: =IF(B8<>"",VLOOKUP(B8,Presmetka,12,FALSE),"") -> 0 | K10: =IF(B8<>"",VLOOKUP(B8,Presmetka,17,FALSE),"") -> 1300 | L10: =IF(B8<>"",VLOOKUP(B8,Presmetka,21,FALSE),"") -> 1289 | M10: =IF(B8<>"",VLOOKUP(B8,Presmetka,25,FALSE),"") -> 0 | N10: =IF(B8<>"",VLOOKUP(B8,podatoci1,11,FALSE),"") -> Staklo 2
G11: =IF(B8<>"",VLOOKUP(B8,Presmetka,5,FALSE),"") -> 1456 | H11: =IF(B8<>"",VLOOKUP(B8,Presmetka,9,FALSE),"") -> 1374 | I11: =IF(B8<>"",VLOOKUP(B8,Presmetka,13,FALSE),"") -> 0 | K11: =IF(B8<>"",VLOOKUP(B8,Presmetka,18,FALSE),"") -> 1300 | L11: =IF(B8<>"",VLOOKUP(B8,Presmetka,22,FALSE),"") -> 1289 | M11: =IF(B8<>"",VLOOKUP(B8,Presmetka,26,FALSE),"") -> 0 | N11: =IF(B8<>"",VLOOKUP(B8,Presmetka,29,FALSE),"") -> 1869 | O11: x | P11: =IF(B8<>"",VLOOKUP(B8,Presmetka,30,FALSE),"") -> 1342
B12: 0 | P12: 0
H14: Datum
B15: Klient :
B16: Adresa :
B17: Telefon :
B19: .

Sheet Formuli
A1: Prozor fiksen | B1: 1 | E1: Tip na PVC | F1: Krilo | G1: Kasa | H1: Krilo | I1: Kril. 2 | J1: T Pre. | K1: `.Kasa | L1: `.Krilo | M1: `.Kri.2 | N1: Stak. 1 | O1: Stak. 2 | R1: Tip na PVC | S1: Kasa 1 | T1: Kasa 2 | U1: Kasa 3 | V1: Kasa 4 | W1: Krilo 1/1 | X1: Krilo 1/2 | Y1: Krilo 1/3 | Z1: Krilo 1/4 | AA1: Krilo 2/1 | AB1: Krilo 2/2 | AC1: Krilo 2/3 | AD1: Krilo 2/4 | AE1: T Pre. 1 | AF1: `.Kasa 1 | AG1: `.Kasa 2 | AH1: `.Kasa 3 | AI1: `.Kasa 4 | AJ1: `.Krilo 1/1 | AK1: `.Krilo 1/2 | AL1: `.Krilo 1/3 | AM1: `.Krilo 1/4 | AN1: `.Krilo 2/1 | AO1: `.Krilo 2/2 | AP1: `.Krilo 2/3 | AQ1: `.Krilo 2/4 | AR1: Stak. 1/1 | AS1: Stak. 1/2 | AT1: Stak. 2/1 | AU1: Stak. 2/2
A2: Prozor so 1 krilo | B2: 2 | D2: 1 | E2: Prozor fiksen | G2: Kasa | K2: `.Kasa | N2: Staklo | Q2: 1 | R2: Prozor fiksen | S2: =S18 -> 2006 | T2: =S18 -> 2006 | U2: 1456 | V2: =T18 -> 1456 | AF2: =X18 -> 1850 | AG2: =X18 -> 1850 | AH2: 1300 | AI2: =Y18 -> 1300 | AR2: =AB18 -> 1892 | AS2: 1342
A3: Prozor so 1 krilo + fiksno | B3: 3 | D3: 2 | E3: Prozor so 1 krilo | G3: Kasa | H3: Krilo | K3: `.Kasa | L3: `.Krilo | N3: Staklo | Q3: 2 | R3: Prozor so 1 krilo | S3: =S19 -> 2006 | T3: 2006 | U3: 1456 | V3: =T19 -> 1456 | W3: =U19 -> 1924 | X3: =U19 -> 1924 | Y3: 1374 | Z3: =V19 -> 1374 | AF3: =X19 -> 1850 | AG3: 1850 | AH3: 1300 | AI3: =Y19 -> 1300 | AJ3: =Z19 -> 1839 | AK3: =Z19 -> 1839 | AL3: 1289 | AM3: =AA19 -> 1289 | AR3: 1782 | AS3: 1232
A4: Prozor so 2 krila so adapter | B4: 4 | D4: 3 | E4: Prozor so 1 krilo + fiksno | F4: Krilo | G4: Kasa | H4: Krilo | J4: T Pre. | K4: `.Kasa | L4: `.Krilo | N4: Staklo | O4: Staklo 2 | Q4: 3 | R4: Prozor so 1 krilo + fiksno | S4: =S20 -> 2006 | T4: 2006 | U4: 1456 | V4: =T20 -> 1456 | W4: =U20 -> -76 | X4: -76 | Y4: 1374 | Z4: =V20 -> 1374 | AE4: =W20 -> 1350 | AF4: =X20 -> 1850 | AG4: 1850 | AH4: 1300 | AI4: =Y20 -> 1300 | AJ4: =Z20 -> -161 | AK4: -161 | AL4: 1289 | AM4: =AA20 -> 1289 | AR4: -136 | AS4: 1232 | AT4: 1869 | AU4: 1342
A5: Prozor so 2 krila so T pre. | B5: 5 | D5: 4 | E5: Prozor so 2 krila so adapter | G5: Kasa | H5: Krilo | I5: Kril.2 | K5: `.Kasa | L5: `.Krilo | M5: `.Kri.2 | N5: Staklo | O5: Staklo 2 | Q5: 4 | R5: Prozor so 2 krila so adapter | S5: =S21 -> 2006 | T5: 2006 | U5: 1456 | V5: =T21 -> 1456 | W5: =U21 -> 962 | X5: 962 | Y5: 1374 | Z5: =V21 -> 1374 | AA5: =U21 -> 962 | AB5: =U21 -> 962 | AC5: =V21 -> 1374 | AD5: =V21 -> 1374 | AF5: =X21 -> 1850 | AG5: 1850 | AH5: 1300 | AI5: =Y21 -> 1300 | AJ5: =Z21 -> 801 | AK5: 801 | AL5: 1289 | AM5: =AA21 -> 1289 | AN5: =Z21 -> 801 | AO5: =Z21 -> 801 | AP5: =AA21 -> 1289 | AQ5: =AA21 -> 1289 | AR5: 827 | AS5: 1232 | AT5: 827 | AU5: 1232
D6: 5 | E6: Prozor so 2 krila so T pre. | G6: Kasa | H6: Krilo | I6: Kril.2 | J6: T Pre. | K6: `.Kasa | L6: `.Krilo | M6: `.Kri.2 | N6: Staklo | O6: Staklo 2 | Q6: 5 | R6: Prozor so 2 krila so T pre. | S6: =S22 -> 2006 | T6: 2006 | U6: 1456 | V6: =T22 -> 1456 | W6: =U22 -> 954 | X6: 954 | Y6: 1374 | Z6: =V22 -> 1374 | AA6: =U22 -> 954 | AB6: =U22 -> 954 | AC6: =V22 -> 1374 | AD6: =V22 -> 1374 | AE6: =W22 -> 1350 | AF6: =X22 -> 1850 | AG6: 1850 | AH6: 1300 | AI6: =Y22 -> 1300 | AJ6: =Z22 -> 793 | AK6: 793 | AL6: 1289 | AM6: =AA22 -> 1289 | AN6: =Z22 -> 793 | AO6: =Z22 -> 793 | AP6: =AA22 -> 1289 | AQ6: =AA22 -> 1289 | AR6: 819 | AS6: 1232 | AT6: 819 | AU6: 1232
R17: Tip na PVC -Formuli | S17: Kasa 1 | T17: Kasa 2 | U17: Krilo 1 | V17: Krilo 2 | W17: T.pre. | X17: `.Kasa1 | Y17: `.Kasa2 | Z17: `.Krilo 1 | AA17: `.Krilo 2 | AB17: Stak.1/a | AC17: Stak.1/b | AD17: Stak.2/a | AE17: Stak.2/b
Q18: 1 | R18: Prozor fiksen | S18: =Presmetka!B10+6 -> 2006 | T18: =Presmetka!C10+6 -> 1456 | X18: =Presmetka!B10-150 -> 1850 | Y18: =Presmetka!C10-150 -> 1300 | AB18: =Presmetka!B10-108 -> 1892 | AC18: =Presmetka!C10-108 -> 1342
Q19: 2 | R19: Prozor so 1 krilo | S19: =Presmetka!B10+6 -> 2006 | T19: =Presmetka!C10+6 -> 1456 | U19: =Presmetka!B10-76 -> 1924 | V19: =Presmetka!C10-76 -> 1374 | X19: =Presmetka!B10-150 -> 1850 | Y19: =Presmetka!C10-150 -> 1300 | Z19: =Presmetka!B10-161 -> 1839 | AA19: =Presmetka!C10-161 -> 1289 | AB19: =Presmetka!B10-218 -> 1782 | AC19: =Presmetka!C10-218 -> 1232
Q20: 3 | R20: Prozor so 1 krilo + fiksno | S20: =Presmetka!B10+6 -> 2006 | T20: =Presmetka!C10+6 -> 1456 | U20: =Presmetka!E10-76 -> -76 | V20: =Presmetka!C10-76 -> 1374 | W20: =Presmetka!C10-100 -> 1350 | X20: =Presmetka!B10-150 -> 1850 | Y20: =Presmetka!C10-150 -> 1300 | Z20: =Presmetka!E10-161 -> -161 | AA20: =Presmetka!C10-161 -> 1289 | AB20: =Presmetka!E10-136 -> -136 | AC20: =Presmetka!C10-218 -> 1232 | AD20: =Presmetka!B10-Presmetka!E10-131 -> 1869 | AE20: =Presmetka!C10-108 -> 1342
Q21: 4 | R21: Prozor so 2 krila so adapter | S21: =Presmetka!B10+6 -> 2006 | T21: =Presmetka!C10+6 -> 1456 | U21: =(Presmetka!B10-76)/2 -> 962 | V21: =Presmetka!C10-76 -> 1374 | X21: =Presmetka!B10-150 -> 1850 | Y21: =Presmetka!C10-150 -> 1300 | Z21: =((Presmetka!B10-76)/2)-161 -> 801 | AA21: =Presmetka!C10-161 -> 1289 | AB21: =(Presmetka!B10-346)/2 -> 827 | AC21: =Presmetka!C10-218 -> 1232 | AD21: =(Presmetka!B10-346)/2 -> 827 | AE21: =Presmetka!C10-218 -> 1232
Q22: 5 | R22: Prozor so 2 krila so T pre. | S22: =Presmetka!B10+6 -> 2006 | T22: =Presmetka!C10+6 -> 1456 | U22: =(Presmetka!B10-92)/2 -> 954 | V22: =Presmetka!C10-76 -> 1374 | W22: =Presmetka!C10-100 -> 1350 | X22: =Presmetka!B10-150 -> 1850 | Y22: =Presmetka!C10-150 -> 1300 | Z22: =((Presmetka!B10-92)/2)-161 -> 793 | AA22: =Presmetka!C10-161 -> 1289 | AB22: =(Presmetka!B10-362)/2 -> 819 | AC22: =Presmetka!C10-218 -> 1232 | AD22: =(Presmetka!B10-362)/2 -> 819 | AE22: =Presmetka!C10-218 -> 1232

Sheet Sliki
